bitfinex-derivatives/quotes_ETHF0:USTF0_20250616
["timestamp","ask_amount","ask_price","bid_price","bid_amount"]
[1750075442406,1.77648845,2611.9,2611.2,9.40884]
[1750075442407,0.76583,2611.3,2611.2,9.40884]
[1750075442703,0.76583,2611.3,2610.9,0.6624]
[1750075442704,0.76592,2611.0,2610.9,0.6624]
[1750075443003,0.76592,2611.0,2610.9,9.3224048]
[1750075444299,6.25743483,2611.1,2611.0,0.76592]
[1750075444497,0.76591,2611.1,2611.0,0.76592]
[1750075444704,0.76598,2610.8,2610.7,0.00574482]
[1750075444907,6.25750483,2610.8,2610.7,0.00574482]
[1750075445804,7.26283772,2610.8,2610.7,0.00574482]
[1750075446104,7.26283772,2610.8,2610.1,0.6495]
[1750075446105,0.76613,2610.3,2610.1,0.6495]
[1750075446309,3.97393,2610.3,2610.2,7.8940548]
[1750075446498,3.2078,2610.3,2610.2,7.8940548]
[1750075446700,3.97393,2610.3,2610.2,7.8940548]
[1750075447007,3.2078,2610.3,2610.2,8.6602148]
[1750075447203,3.2078,2610.3,2610.1,0.6495]
[1750075447411,3.97395,2610.3,2610.1,0.6495]
[1750075447902,3.97395,2610.3,2610.0,0.00574482]
[1750075447903,3.97393,2610.3,2610.0,0.00574482]
[1750075448104,0.76619,2610.1,2610.0,0.00574482]
[1750075448706,6.25770483,2610.2,2610.0,0.77195482]
[1750075448897,0.76618,2610.1,2610.0,0.00574482]
[1750075451204,6.25769483,2610.2,2610.0,0.77193482]
[1750075451408,5.49152483,2610.2,2610.1,0.76618]
[1750075451710,0.76616,2610.2,2610.1,0.76617]
[1750075451906,36.0898,2610.3,2610.0,0.77193482]
[1750075452114,0.76618,2610.1,2610.0,0.77193482]
[1750075452304,36.0898,2610.3,2610.0,0.77193482]
[1750075452305,0.76618,2610.2,2610.1,0.76618]
[1750075452509,28.6838,2610.3,2610.2,0.76615]
[1750075453001,3.2078,2610.3,2610.2,8.6602048]
[1750075455004,3.97382,2610.7,2610.6,0.76604]
[1750075455201,0.76604,2610.6,2610.5,8.6601048]
[1750075455412,0.7661,2610.4,2610.3,0.76611]
[1750075455610,0.76614,2610.3,2610.2,8.6601848]
[1750075456017,0.76614,2610.3,2610.2,0.76613]
[1750075456314,3.97391,2610.4,2610.3,0.76613]
[1750075457412,3.2078,2610.7,2610.4,0.7661]
[1750075457713,3.2078,2610.7,2610.6,8.6600948]
[1750075458108,3.97381,2610.7,2610.6,0.76604]
[1750075458313,0.76609,2610.5,2610.4,0.76608]
[1750075458611,6.25757483,2610.6,2610.5,8.6601248]
[1750075458811,6.25757483,2610.6,2610.5,0.76607]
[1750075458812,6.25758483,2610.6,2610.5,0.76607]
[1750075459219,5.49152483,2610.6,2610.5,0.76607]
[1750075459920,6.25756483,2610.6,2610.5,0.76607]
[1750075460613,3.2078,2610.7,2610.6,0.76604]
[1750075460815,3.97381,2610.7,2610.6,0.76604]
[1750075461018,0.76606,2610.6,2610.5,0.76605]
[1750075461523,0.76606,2610.6,2610.5,8.6601048]
[1750075462016,3.97383,2610.7,2610.6,0.76604]
[1750075462318,3.2078,2610.7,2610.6,8.6600948]
[1750075462517,3.2078,2611.1,2611.0,0.76589]
[1750075462712,3.97369,2611.1,2611.0,8.6599448]
[1750075462918,3.2078,2611.1,2611.0,8.6599448]
[1750075463122,3.97369,2611.1,2611.0,8.6599448]
[1750075463925,3.97369,2611.1,2611.0,0.76589]
[1750075466017,0.76595,2611.0,2610.8,1.2746]
[1750075466214,0.76595,2611.0,2610.9,0.76595]
[1750075466519,0.76595,2611.0,2610.9,8.6600048]
[1750075470219,0.76595,2611.0,2610.9,0.76595]
[1750075470919,0.76595,2611.0,2610.9,8.6600048]
[1750075471119,29.22571,2611.1,2611.0,0.76592]
[1750075471411,29.22571,2611.1,2611.0,9.9972748]
[1750075471616,29.22571,2611.1,2611.0,2.10322]
[1750075472017,3.97371,2611.1,2611.0,9.9972748]
[1750075472214,3.97369,2611.1,2611.0,9.9972748]
[1750075472919,3.97369,2611.1,2611.0,8.6599748]
[1750075473120,10.46558086,2611.1,2611.0,8.6599748]
[1750075473321,4.97405603,2611.1,2611.0,8.6599748]
[1750075474736,4.97405603,2611.1,2611.0,7.8940548]
[1750075475122,0.76592,2611.0,2610.9,0.76593]
[1750075475622,0.76592,2611.0,2610.9,8.6599848]
[1750075478322,0.76592,2611.0,2610.9,9.9570848]
[1750075479728,3.97372,2611.1,2611.0,0.76592]
[1750075479927,29.07672,2611.1,2611.0,9.9570748]
[1750075481021,28.3008,2611.1,2611.0,9.9570748]
[1750075481216,3.2078,2611.1,2611.0,9.9570748]
[1750075481617,0.00574482,2611.2,2611.1,0.76589]
[1750075481822,0.00574482,2611.2,2611.1,8.6599448]
[1750075482027,3.2078,2611.5,2611.4,0.7658]
[1750075482232,3.2078,2611.5,2611.4,8.6598548]
[1750075483224,3.2078,2611.8,2611.4,14.8085548]
[1750075483423,0.76561,2612.1,2611.7,11.1018548]
[1750075483727,6.25721483,2611.8,2611.7,3.2078]
[1750075483924,0.76572,2611.7,2611.5,1.3382]
[1750075484123,0.76572,2611.7,2611.6,7.8940548]
[1750075484632,0.00574482,2611.9,2611.6,11.1018548]
[1750075484922,0.00574482,2611.9,2611.8,8.6597448]
[1750075489428,0.76572,2611.7,2611.6,3.2078]
[1750075489628,0.76575,2611.6,2611.5,1.3382]
[1750075489822,0.76577,2611.5,2611.4,0.00574482]
[1750075490028,0.76592,2611.0,2610.9,1.39193]
[1750075490228,0.76586,2611.3,2611.1,7.8940548]
[1750075490429,0.76586,2611.3,2611.2,0.76586]
[1750075491131,0.76586,2611.3,2611.2,8.6599148]
[1750075492135,0.76583,2611.3,2611.2,0.76586]
[1750075492329,7.218,2611.5,2611.0,3.92543482]
[1750075492641,0.76583,2611.4,2611.3,0.76581]
[1750075493035,0.76586,2611.3,2611.2,0.76584]
[1750075493332,0.76583,2611.4,2611.3,0.76582]
[1750075494034,3.2078,2611.6,2611.3,7.8940548]
[1750075494336,0.76577,2611.5,2611.4,8.6598548]
[1750075494538,10.99857,2611.6,2611.5,0.76577]
[1750075495633,0.76581,2611.5,2611.4,0.76579]
[1750075495832,0.76581,2611.5,2611.4,8.6598448]
[1750075498937,0.76581,2611.5,2611.4,7.8940548]
[1750075499137,0.76581,2611.5,2611.4,8.6598548]
[1750075500344,0.76589,2611.2,2611.1,0.76584]
[1750075500736,0.76589,2611.2,2611.1,8.6598948]
[1750075501643,0.76586,2611.3,2611.2,0.76582]
[1750075501834,0.76586,2611.3,2611.2,8.6598748]
[1750075502143,0.76586,2611.3,2611.2,0.76582]
[1750075502643,0.76589,2611.1,2611.0,0.77164482]
[1750075502942,0.76601,2610.7,2610.6,4.61063]
[1750075503142,10.2328,2610.7,2610.2,3.2078]
[1750075503444,0.7661,2610.5,2610.4,8.6601448]
[1750075503747,3.2078,2610.7,2610.6,8.6600948]
[1750075504758,0.00574482,2610.9,2610.8,0.76598]
[1750075505040,0.00574482,2610.9,2610.8,8.6600348]
[1750075505236,0.77169482,2610.9,2610.8,8.6600348]
[1750075505546,0.00574482,2610.9,2610.8,9.9503348]
[1750075505842,0.77169482,2610.9,2610.8,9.9503348]
[1750075506040,0.77169482,2610.9,2610.6,5.12289]
[1750075506041,0.00574482,2610.9,2610.6,3.2078]
[1750075506239,0.76607,2610.5,2610.4,0.00574482]
[1750075506440,0.76607,2610.5,2610.4,7.89979962]
[1750075506641,0.76607,2610.5,2610.4,0.00574482]
[1750075507548,6.25759483,2610.5,2610.4,0.00574482]
[1750075507839,9.46539483,2610.5,2610.4,0.00574482]
[1750075508034,10.46055008,2610.5,2610.4,0.00574482]
[1750075508435,0.76619,2610.1,2610.0,0.7662]
[1750075508645,0.76619,2610.1,2610.0,8.6602548]
[1750075509046,0.76618,2610.2,2610.1,0.76615]
[1750075509343,0.76619,2610.1,2610.0,8.6602548]
[1750075509946,0.76618,2610.2,2610.1,0.76615]
[1750075510147,0.76618,2610.2,2610.1,8.6602048]
[1750075510342,0.76618,2610.2,2610.1,0.76615]
[1750075512041,0.76618,2610.2,2610.1,8.6602048]
[1750075512252,0.76615,2610.3,2610.2,0.76613]
[1750075512453,0.76615,2610.3,2610.2,8.6601848]
[1750075512746,0.76615,2610.3,2610.2,0.76613]
[1750075513349,0.76618,2610.2,2610.1,0.76616]
[1750075513751,0.76618,2610.2,2610.1,7.8940548]
[1750075513949,0.76624,2609.9,2609.8,3.21354482]
[1750075514146,0.76624,2609.9,2609.8,11.10759962]
[1750075514851,0.76624,2610.0,2609.9,0.76622]
[1750075515050,0.76624,2610.0,2609.9,7.8940548]
[1750075515251,0.76624,2610.0,2609.9,8.6602948]
[1750075515453,0.76624,2610.0,2609.9,7.8940548]
[1750075515753,0.76624,2610.0,2609.9,8.6602948]
[1750075515953,0.76624,2610.0,2609.9,7.8940548]
[1750075516751,0.76624,2610.0,2609.9,8.6602948]
[1750075516954,0.76624,2610.0,2609.9,7.8940548]
[1750075517150,0.76624,2609.9,2609.8,0.00574482]
[1750075517352,0.76624,2609.9,2609.3,0.7664]
[1750075517353,1.9157,2609.8,2609.3,0.7664]
[1750075517556,0.76642,2609.4,2609.3,0.7664]
[1750075517955,0.76642,2609.3,2609.2,3.2078]
[1750075518155,0.76653,2609.0,2608.9,0.76651]
[1750075518357,0.76651,2609.0,2608.9,7.8940548]
[1750075518553,0.7665,2609.1,2609.0,0.7665]
[1750075518859,0.76651,2609.0,2608.9,7.8940548]
[1750075519258,0.76654,2608.9,2608.8,0.76656]
[1750075519460,0.76654,2608.9,2608.8,2.03146]
[1750075519654,0.76654,2608.9,2608.8,9.9255148]
[1750075519870,7.03374482,2609.2,2608.8,9.9255148]
[1750075520070,0.76654,2609.0,2608.9,7.8940548]
[1750075520369,3.97434,2609.0,2608.9,7.8940548]
[1750075520568,0.76657,2608.8,2608.7,0.00574482]
[1750075521372,5.49726965,2609.2,2608.7,7.89979962]
[1750075521571,7.03474482,2609.2,2609.1,0.76648]
[1750075522067,8.95088482,2609.2,2608.9,0.6664]
[1750075522260,3.97431,2609.0,2608.9,8.5604548]
[1750075522467,3.2078,2609.0,2608.9,8.6605948]
[1750075522670,0.00574482,2609.2,2609.1,0.76648]
[1750075522973,0.00574482,2609.2,2609.1,8.6605348]
[1750075523168,0.77219482,2609.2,2609.1,8.6605348]
[1750075523670,0.00574482,2609.2,2609.1,8.6605348]
[1750075523971,0.00574482,2609.2,2609.1,9.9552348]
[1750075524168,0.00574482,2609.2,2609.1,10.6284348]
[1750075524374,0.00574482,2609.2,2609.1,8.6605348]
[1750075524567,0.77219482,2609.2,2609.1,8.6605348]
[1750075525162,0.00574482,2609.2,2609.1,8.6605348]
[1750075526170,0.77219482,2609.2,2609.1,8.6605348]
[1750075526579,0.77219482,2609.2,2609.1,7.8940548]
[1750075526775,0.76651,2609.0,2608.9,3.2078]
[1750075526970,0.76651,2609.0,2608.9,2.09362]
[1750075527170,0.76651,2609.0,2608.9,9.9876748]
[1750075527878,0.76651,2609.0,2608.9,8.6605748]
[1750075528078,0.76651,2609.0,2608.9,8.6605948]
[1750075528278,0.76651,2609.0,2608.9,7.8940548]
[1750075528472,0.76651,2609.0,2608.9,8.6605948]
[1750075528674,0.76657,2608.8,2608.7,0.00574482]
[1750075528868,6.25809483,2608.8,2608.7,0.00574482]
[1750075529271,6.25809483,2608.8,2608.7,0.77234482]
[1750075529480,6.25809483,2608.8,2608.7,0.00574482]
[1750075530574,0.76657,2608.8,2608.7,0.00574482]
[1750075530769,0.7667,2608.4,2608.1,1.91694]
[1750075530977,0.7667,2608.4,2608.3,0.76668]
[1750075531174,0.7667,2608.4,2608.3,8.6607348]
[1750075531482,0.76674,2608.2,2608.1,2.07495]
[1750075531680,0.76674,2608.2,2608.1,1.3082]
[1750075531983,0.76674,2608.2,2608.1,7.8940548]
[1750075532283,0.76677,2608.1,2608.0,3.97459]
[1750075532780,0.76677,2608.1,2608.0,11.8686448]
[1750075533683,0.76677,2608.1,2608.0,11.1018548]
[1750075533880,0.76683,2607.9,2607.8,1.3431]
[1750075534084,0.76683,2607.9,2607.8,2.10994]
[1750075534287,0.76683,2607.9,2607.8,10.0039948]
[1750075534582,0.76683,2607.9,2607.8,7.8940548]
[1750075535792,0.76683,2607.9,2607.4,8.31744]
[1750075535793,0.76695,2607.5,2607.4,0.76696]
[1750075536078,0.77264482,2607.7,2607.5,7.8940548]
[1750075536276,0.00574482,2607.7,2607.6,8.6609748]
[1750075536883,0.00574482,2607.7,2607.6,9.9347748]
[1750075537282,0.00574482,2607.7,2607.6,11.8687748]
[1750075537480,3.2078,2608.3,2608.2,0.76674]
[1750075537674,3.2078,2608.3,2608.2,8.6607948]
[1750075537877,3.2078,2609.1,2608.2,21.59337963]
[1750075538074,5.12401,2609.1,2608.3,3.27278]
[1750075538284,0.7666,2608.7,2608.6,7.8940548]
[1750075538475,0.7666,2608.7,2608.6,0.76663]
[1750075538678,0.7666,2608.7,2608.6,8.6606848]
[1750075539285,0.7666,2608.7,2608.6,0.76663]
[1750075539587,0.7666,2608.7,2608.6,8.6606848]
[1750075540287,0.76659,2608.8,2608.7,0.76659]
[1750075540480,0.76659,2608.8,2608.7,2.1052]
[1750075540680,0.76659,2608.8,2608.7,9.9992548]
[1750075541287,0.76659,2608.8,2608.7,9.2326548]
[1750075541681,0.76659,2608.8,2608.7,9.9992548]
[1750075542488,0.00574482,2608.9,2608.8,0.76657]
[1750075542686,0.00574482,2608.9,2608.8,10.0219248]
[1750075543791,0.77228482,2608.9,2608.8,10.0219248]
[1750075543991,0.00574482,2608.9,2608.8,10.0219248]
[1750075544183,0.77228482,2608.9,2608.8,9.2553548]
[1750075545690,0.77228482,2608.9,2608.8,10.0219248]
[1750075548793,0.77228482,2608.9,2608.8,9.2553548]
[1750075549093,0.00574482,2608.9,2608.5,3.2078]
[1750075549291,0.76663,2608.6,2608.5,5.27604]
[1750075549494,0.76661,2608.7,2608.6,0.76658]
[1750075549685,0.76661,2608.7,2608.6,8.6606348]
[1750075550181,0.76661,2608.7,2608.6,7.8940548]
[1750075551486,0.76661,2608.7,2608.6,8.6606848]
[1750075552482,0.76661,2608.7,2608.6,7.8940548]
[1750075552793,0.76661,2608.7,2608.6,0.76663]
[1750075552991,0.7666,2608.8,2608.7,0.7666]
[1750075553187,0.7666,2608.8,2608.7,10.0042548]
[1750075553383,0.7666,2608.8,2608.7,2.1102]
[1750075555792,0.7666,2608.8,2608.7,0.7666]
[1750075555989,0.7666,2608.8,2608.4,0.00574482]
[1750075555990,0.76666,2608.5,2608.4,0.00574482]
[1750075556389,0.76666,2608.5,2608.4,7.89979962]
[1750075556696,0.76666,2608.5,2608.4,8.66647962]
[1750075557502,0.76666,2608.5,2608.4,0.00574482]
[1750075558093,1.75291861,2608.5,2608.4,0.00574482]
[1750075558489,0.76666,2608.5,2608.4,0.00574482]
[1750075558700,0.76666,2608.5,2608.4,0.77243482]
[1750075558701,1.75295782,2608.5,2608.4,0.77243482]
[1750075558896,1.24194482,2608.9,2608.4,7.89979962]
[1750075558897,10.62143965,2608.9,2608.4,7.89979962]
[1750075559105,0.76663,2608.7,2608.6,8.6606548]
[1750075559398,0.76663,2608.7,2608.6,0.7666]
[1750075559588,0.76658,2608.8,2608.7,0.76656]
[1750075559897,10.73710482,2608.9,2608.8,0.76656]
[1750075560095,10.73710482,2608.9,2608.8,8.6606148]
[1750075560294,0.00574482,2608.9,2608.8,8.6606148]
[1750075560492,0.76639,2609.5,2608.9,1.91634]
[1750075560685,0.76639,2609.5,2608.8,7.96142886]
[1750075560686,1.75245519,2609.4,2609.3,8.6604548]
[1750075560896,3.2078,2609.6,2609.3,7.8940548]
[1750075561089,3.2078,2609.6,2609.5,0.76636]
[1750075561296,3.2078,2609.6,2609.5,8.6604148]
[1750075561698,7.52902482,2609.8,2609.7,0.7663]
[1750075561904,0.00574482,2609.8,2609.7,8.6603548]
[1750075562100,0.00574482,2609.8,2609.7,0.7663]
[1750075563199,0.00574482,2609.8,2609.7,2.7322]
[1750075563502,0.77201482,2609.8,2609.7,2.7322]
[1750075564099,0.00574482,2609.8,2609.7,2.7322]
[1750075564398,0.77201482,2609.8,2609.7,2.7322]
[1750075564600,0.00574482,2609.8,2609.7,2.7322]
[1750075564998,0.77201482,2609.8,2609.7,2.7322]
[1750075565392,0.00574482,2609.8,2609.7,2.7322]
[1750075565797,0.77201482,2609.8,2609.7,2.7322]
[1750075566101,0.00574482,2609.8,2609.7,2.7322]
[1750075566801,0.00574482,2609.8,2609.7,10.6262548]
[1750075567103,0.00574482,2609.8,2609.7,11.2448548]
[1750075568701,0.77201482,2609.8,2609.7,9.1536548]
[1750075568903,0.76636,2609.6,2609.5,0.76635]
[1750075569100,0.76636,2609.6,2609.5,8.6604048]
[1750075569294,0.76632,2609.7,2609.6,0.7663]
[1750075569496,0.76632,2609.7,2609.6,8.6603548]
[1750075569896,0.76637,2609.6,2609.5,0.76634]
[1750075570397,0.76632,2609.7,2609.6,0.7663]
[1750075570604,0.76632,2609.7,2609.6,7.8940548]
[1750075570799,0.76633,2609.6,2609.5,0.76634]
[1750075571308,0.76633,2609.6,2609.5,8.6603948]
[1750075571602,0.76633,2609.7,2609.6,0.7663]
[1750075571805,0.76637,2609.6,2609.5,0.76634]
[1750075572299,0.76637,2609.6,2609.5,8.6603948]
[1750075573396,0.76633,2609.7,2609.6,0.7663]
[1750075573597,0.76633,2609.7,2609.6,8.6603548]
[1750075573807,0.76633,2609.7,2609.6,0.7663]
[1750075574406,0.00574482,2609.8,2609.5,0.76634]
[1750075574407,0.76636,2609.6,2609.5,0.76634]
[1750075575006,0.76636,2609.6,2609.5,8.6603948]
[1750075576599,0.76639,2609.4,2609.3,3.2078]
[1750075577507,0.76639,2609.4,2609.3,11.8682748]
[1750075577710,0.76639,2609.5,2609.4,0.76636]
[1750075578009,6.755,2609.7,2609.6,8.6603848]
[1750075578203,0.7663,2609.7,2609.6,8.6603848]
[1750075578410,0.77204482,2609.8,2609.7,0.7663]
[1750075578711,0.00574482,2609.8,2609.7,10.0212548]
[1750075579004,0.00574482,2609.8,2609.7,10.6930548]
[1750075580408,1.91522,2610.5,2609.7,10.6930548]
[1750075580409,0.76618,2610.2,2610.1,0.76617]
[1750075580813,0.76618,2610.2,2610.1,8.6602248]
[1750075581706,0.76618,2610.2,2610.1,0.76617]
[1750075582510,0.00574482,2610.4,2610.3,0.76613]
[1750075582700,0.00574482,2610.4,2610.3,11.8679848]
[1750075583113,0.00574482,2610.4,2610.3,13.1184848]
[1750075587912,0.76621,2610.1,2610.0,0.76618]
[1750075588103,0.76621,2610.1,2609.9,0.00574482]
[1750075588104,0.76622,2610.0,2609.9,0.00574482]
[1750075589410,1.75196275,2610.0,2609.9,0.00574482]
[1750075593815,1.75205533,2610.0,2609.9,0.00574482]
[1750075595117,1.75205533,2610.0,2609.9,0.07311888]
[1750075596208,1.75205533,2610.0,2609.9,1.32234482]
[1750075599221,1.75205533,2610.0,2609.9,1.38971888]
[1750075604925,4.395712,2610.0,2609.9,1.38971888]
[1750075608023,1.75205533,2610.0,2609.9,1.38971888]
[1750075609131,1.75205533,2610.0,2609.9,2.15596888]
[1750075609329,1.75205533,2610.0,2609.9,1.38971888]
[1750075610423,0.98583533,2610.0,2609.9,10.05001368]
[1750075610623,0.76621,2610.1,2609.9,10.04999368]
[1750075610822,0.76621,2610.1,2610.0,8.6602648]
[1750075611022,1.75355914,2610.1,2610.0,9.9777648]
[1750075611218,1.75355914,2610.1,2610.0,2.08371]
[1750075612234,1.75355914,2610.1,2610.0,1.3175]
[1750075613530,1.75355914,2610.1,2610.0,9.2115548]
[1750075613733,25.96655914,2610.1,2610.0,9.2115548]
[1750075613926,25.96655914,2610.1,2609.9,0.07311888]
[1750075613927,0.76622,2610.0,2609.9,0.07311888]
[1750075614230,4.39722581,2610.0,2609.9,7.96717368]
[1750075615331,4.39722581,2610.0,2609.9,0.07311888]
[1750075617627,4.39722581,2610.0,2609.9,0.00574482]
[1750075618730,4.39722581,2610.0,2609.9,0.07311888]
[1750075619627,4.39722581,2610.0,2609.9,0.00574482]
[1750075620638,4.39722581,2610.0,2609.9,0.07311888]
[1750075621735,0.98734914,2610.0,2609.9,0.07311888]
[1750075621940,25.20034914,2610.0,2609.9,8.73342368]
[1750075622237,25.96656914,2610.0,2609.9,7.96717368]
[1750075622539,25.96656914,2610.0,2609.9,10.05172368]
[1750075622732,25.96656914,2610.0,2609.9,11.33162368]
[1750075622936,25.20034914,2610.0,2609.9,11.33162368]
[1750075623340,25.96656914,2610.0,2609.9,10.56537368]
[1750075623734,25.20034914,2610.0,2609.9,11.33162368]
[1750075625438,25.96656914,2610.0,2609.9,11.33162368]
[1750075626337,25.20034914,2610.0,2609.9,11.33162368]
[1750075626735,25.96656914,2610.0,2609.9,11.33162368]
[1750075627640,25.20034914,2610.0,2609.9,11.33162368]
[1750075628138,0.98734914,2610.0,2609.9,16.33162368]
[1750075628435,25.2018749,2610.1,2610.0,0.76621]
[1750075628642,0.98987395,2610.1,2610.0,2.69581]
[1750075628840,0.00574482,2610.4,2610.0,18.7976648]
[1750075629040,0.00574482,2610.4,2610.3,11.8679748]
[1750075629439,3.2078,2610.8,2610.7,0.76601]
[1750075629638,3.97378,2610.8,2610.7,7.8940548]
[1750075630146,3.97378,2610.8,2610.7,9.8064548]
[1750075631343,0.7661,2610.4,2610.3,3.8558]
[1750075631544,6.61755667,2610.4,2610.3,1.3071]
[1750075631739,0.76617,2610.2,2610.0,0.7662]
[1750075631938,24.209,2610.3,2610.2,0.76616]
[1750075632245,24.97513,2610.3,2610.2,0.76616]
[1750075632437,24.97513,2610.3,2610.2,8.6602148]
[1750075632638,24.97513,2610.3,2610.2,7.8940548]
[1750075632837,24.209,2610.3,2610.2,8.6602148]
[1750075633743,3.2078,2610.4,2610.3,0.76613]
[1750075634047,3.2078,2610.4,2610.0,1.8368]
[1750075634241,0.76621,2610.0,2609.9,9.06314369]
[1750075634441,24.97521,2610.0,2609.9,9.06314369]
[1750075634844,24.97521,2610.0,2609.9,8.99576963]
[1750075635146,24.209,2610.0,2609.9,9.76200963]
[1750075635337,24.97521,2610.0,2609.9,8.99576963]
[1750075635536,0.76621,2610.0,2609.9,9.76200963]
[1750075635738,0.76621,2610.0,2609.9,8.99576963]
[1750075635942,0.76621,2610.0,2609.9,9.06314369]
[1750075636143,0.76621,2610.0,2609.9,10.41554369]
[1750075636350,0.76621,2610.0,2609.9,9.06314369]
[1750075636945,0.76621,2610.0,2609.9,8.99576963]
[1750075637142,0.76621,2610.0,2609.9,10.34816963]
[1750075639254,0.76621,2610.0,2609.9,11.11441963]
[1750075639952,3.97401,2610.1,2609.9,10.41554369]
[1750075640152,3.97401,2610.1,2610.0,7.8940548]
[1750075640945,4.95719153,2610.1,2610.0,7.8940548]
[1750075642552,4.95719153,2610.1,2610.0,8.6602748]
[1750075642850,4.95719153,2610.1,2610.0,9.2507548]
[1750075643558,1.74939153,2610.1,2610.0,9.2507548]
[1750075643746,1.74939153,2610.1,2610.0,10.0169748]
[1750075644054,1.74939153,2610.1,2610.0,9.2507548]
[1750075645051,1.74939153,2610.1,2610.0,10.0169748]
[1750075645246,1.74939153,2610.1,2610.0,9.2507548]
[1750075646653,0.98318153,2610.1,2610.0,10.0169748]
[1750075647049,25.95837153,2610.1,2610.0,10.0169748]
[1750075647246,25.19218153,2610.1,2610.0,10.0169748]
[1750075647442,0.98318153,2610.1,2610.0,10.0169748]
[1750075647651,3.97391,2610.4,2610.3,0.76613]
[1750075647851,4.95572727,2610.4,2610.3,8.6601848]
[1750075648049,28.39761727,2610.4,2610.3,8.6601848]
[1750075648250,29.16372727,2610.4,2610.3,8.6601848]
[1750075648652,29.16372727,2610.4,2610.3,9.9908848]
[1750075649155,28.39761727,2610.4,2610.3,9.9908848]
[1750075649551,27.4158,2610.4,2610.3,9.9908848]
[1750075649853,3.2078,2610.4,2610.3,9.9908848]
[1750075650154,0.76607,2610.6,2610.5,0.76608]
[1750075650354,0.76602,2610.7,2610.6,0.76605]
[1750075650551,25.95477407,2610.7,2610.6,0.76605]
[1750075650948,9.7298,2610.8,2610.7,0.76602]
[1750075651147,34.91848046,2610.8,2610.7,8.6600748]
[1750075651348,35.68447046,2610.8,2610.7,8.6600748]
[1750075651555,29.16247046,2610.8,2610.7,8.6600748]
[1750075651753,28.39548046,2610.8,2610.7,8.6600748]
[1750075652249,28.39548046,2610.8,2610.7,9.8917748]
[1750075653454,29.16147046,2610.8,2610.7,9.8917748]
[1750075653654,28.39548046,2610.8,2610.7,9.8917748]
[1750075654054,29.16147046,2610.8,2610.7,9.8917748]
[1750075654256,28.17979,2610.8,2610.7,9.8917748]
[1750075654657,29.16073615,2610.8,2610.7,9.8917748]
[1750075655253,28.39474615,2610.8,2610.7,9.8917748]
[1750075655454,0.77170482,2611.0,2610.9,0.76596]
[1750075655650,1.75248144,2611.0,2610.9,8.6600148]
[1750075655857,25.95448144,2611.0,2610.9,8.6600148]
[1750075656454,0.98652144,2611.0,2610.9,8.6600148]
[1750075656654,24.20774482,2611.0,2610.9,8.6600148]
[1750075657359,0.00574482,2611.0,2610.9,8.6600148]
[1750075657661,24.20774482,2611.0,2610.9,8.6600148]
[1750075658358,0.00574482,2611.0,2610.9,13.1773148]
[1750075658570,0.00574482,2611.0,2610.9,9.9695148]
[1750075659652,3.97363,2611.4,2611.3,0.76585]
[1750075659653,27.4078,2611.4,2611.3,0.76585]
[1750075659853,28.38754488,2611.4,2611.3,8.6599048]
[1750075660358,28.17362,2611.4,2611.3,8.6599048]
[1750075660556,28.17362,2611.4,2611.3,7.8940548]
[1750075660858,27.4078,2611.4,2611.3,8.6599048]
[1750075661159,27.4058,2611.4,2611.3,8.6599048]
[1750075661464,28.17162,2611.4,2611.3,7.8940548]
[1750075661857,0.76585,2611.3,2611.2,0.76588]
[1750075662160,0.76588,2611.2,2611.1,0.00574482]
[1750075662359,1.91492,2610.9,2610.4,1.9492]
[1750075662557,28.17079,2610.8,2610.7,7.75657539]
[1750075663057,0.76608,2610.5,2610.4,1.39239]
[1750075663251,3.97388,2610.5,2610.4,7.75657539]
[1750075663447,3.2078,2610.5,2610.2,0.00574482]
[1750075663662,3.40681326,2610.3,2610.2,7.76232021]
[1750075663861,3.40681326,2610.3,2610.2,0.00574482]
[1750075664859,0.76614,2610.3,2610.2,0.00574482]
[1750075666359,0.76614,2610.3,2610.2,0.77191482]
[1750075668766,0.76614,2610.3,2610.2,8.52847021]
[1750075669666,24.196,2610.4,2610.3,0.76614]
[1750075669864,24.96211,2610.4,2610.3,8.52271539]
[1750075670065,0.76614,2610.3,2610.2,1.94356888]
[1750075670861,0.76614,2610.3,2610.2,8.93399427]
[1750075671068,24.96213,2610.4,2610.2,8.93399427]
[1750075671255,24.96213,2610.4,2610.3,7.75657539]
[1750075671457,25.94159191,2610.4,2610.3,7.75657539]
[1750075671658,0.76614,2610.3,2610.2,1.17741888]
[1750075672066,0.76614,2610.3,2610.2,8.93399427]
[1750075672854,0.76614,2610.3,2610.2,9.70016427]
[1750075675067,0.76614,2610.3,2610.2,8.93399427]
[1750075675470,6.74620234,2610.3,2610.2,1.17741888]
[1750075675677,0.76631,2609.8,2609.6,1.38383]
[1750075675967,3.97411,2609.8,2609.7,7.75657539]
[1750075676575,3.97411,2609.8,2609.7,8.52289539]
[1750075677168,3.2078,2609.8,2609.7,8.52289539]
[1750075677368,27.4028,2609.8,2609.7,8.52289539]
[1750075677670,27.4028,2609.8,2609.7,9.75249539]
[1750075678367,28.16909,2609.8,2609.7,9.75249539]
[1750075679380,28.16909,2609.8,2609.7,7.75657539]
[1750075679677,28.16909,2609.8,2609.7,8.52289539]
[1750075680474,28.16909,2609.8,2609.7,9.82929539]
[1750075680874,28.16909,2609.8,2609.7,9.06297539]
[1750075681177,28.16909,2609.8,2609.7,9.82929539]
[1750075681679,28.37583462,2609.8,2609.7,9.82929539]
[1750075682882,0.76632,2609.7,2609.6,0.6175]
[1750075683073,0.76635,2609.6,2609.5,0.00574482]
[1750075683274,31.47535,2609.6,2609.5,0.00574482]
[1750075683578,0.7665,2609.1,2609.0,0.76652]
[1750075683776,0.76656,2608.9,2608.8,1.42786]
[1750075683975,0.76656,2608.9,2608.8,0.6613]
[1750075684173,0.76656,2608.9,2608.8,9.18445539]
[1750075684381,0.76656,2608.9,2608.8,7.75657539]
[1750075685082,24.95955,2609.0,2608.9,0.76655]
[1750075685278,3.2078,2609.2,2609.1,0.7665]
[1750075685576,0.7665,2609.1,2609.0,8.37577539]
[1750075685772,0.7665,2609.1,2608.8,0.76657]
[1750075685773,0.76658,2608.9,2608.8,0.76657]
[1750075685973,24.96058,2608.9,2608.8,0.76657]
[1750075686172,24.96058,2608.9,2608.8,8.52314539]
[1750075688776,24.194,2608.9,2608.8,8.52314539]